Workbook

Sheet Форма
H1: Приложение 2
A2: Мониторинг деятельности хозяйствующих субъектов, доля участия субъекта РФ или муниципального образования в которых составляет 50 и более процентов (муниципальные бюджетные и казенные учреждения)
A3: № п/п | B3: Наименование хозяйствующего субъекта | C3: Суммарная доля участия (собственности) государства (субъекта РФ и муниципалитетов) в хозяйствующем субъекте, в процентах | D3: Наименование осуществляемого вида экономической деятельности с указанием кода ОКВЭД | E3: Число потребителей, получивших услуги (в целом по всем учреждениям на рынке), человек | F3: Рыночная доля по числу потребителей (в целом по всем учреждениям на рынке), в процентах | G3: Суммарный объем государственного (со стороны субъекта РФ и муниципальных образований) финансирования хозяйствующего субъекта, в рублях
G4: всего | H4: в том числе:
H5: областной бюджет | I5: муниципальный бюджет
A6: 1 | B6: 2 | C6: 3 | D6: 4 | E6: 5 | F6: 6 | G6: 7 | H6: 8 | I6: 9
A7: Рынок услуг дошкольного образования
A8: 2018
A9: 1 | B9: Муниципальное бюджетное дошкольное учреждение детский сад "Колосок" с.Роженцово Шарангского муниципального района | C9: 1 | D9: 85.11 | E9: 21 | F9: 2.97 | G9: =H9+I9 -> 3209451.21 | H9: 2017775.13 | I9: 1191676.08
A10: 2 | B10: Муниципальное бюджетное дошкольное учреждение детский сад "Полянка" р.п.Шаранга Шарангского муниципального района | C10: 1 | D10: 85.11 | E10: 51.6 | F10: 7.27 | G10: =H10+I10 -> 5435746.91 | H10: 3463739.12 | I10: 1972007.79
A11: 3 | B11: Муниципальное бюджетное дошкольное учреждение детский сад "Солнышко" с.Ст.Рудка Шарангского муниципального района | C11: 1 | D11: 85.11 | E11: 8.8 | F11: 1.25 | G11: 2248328.62 | H11: 1186411.03 | I11: 1061917.59
A12: 4 | B12: Муниципальное бюджетное дошкольное учреждение детский сад "Березка" р.п.Шаранга Шарангского муниципального района | C12: 1 | D12: 85.11 | E12: 51.2 | F12: 7.24 | G12: 5156657.16 | H12: 3720132.24 | I12: 1436524.92
A13: 5 | B13: Муниципальное бюджетное дошкольное учреждение детский сад "Колобок" с.Кушнур Шарангского муниципального района | C13: 1 | D13: 85.11 | E13: 25.1 | F13: 3.55 | G13: 3414130.83 | H13: 2134159.6 | I13: 1279971.23
A14: 6 | B14: Муниципальное бюджетное дошкольное учреждение детский сад "Колобок"с.Щенники Шарангского муниципального района | C14: 1 | D14: 85.11 | E14: 11.2 | F14: 1.58 | G14: 2076360.77 | H14: 1179725.68 | I14: 896635.09
A15: 7 | B15: Муниципальное бюджетное дошкольное учреждение детский сад "Колосок" с.Б.Рудка Шарангского муниципального района | C15: 1 | D15: 85.11 | E15: 23.4 | F15: 3.31 | G15: 3506827.05 | H15: 2308437.75 | I15: 1198389.3
A16: 8 | B16: Муниципальное бюджетное дошкольное учреждение детский сад "Малыш" д.Пестово Шарангского муниципального района | C16: 1 | D16: 85.11 | E16: 16 | F16: 2.26 | G16: 2134232.17 | H16: 1186500 | I16: 947732.17
A17: 9 | B17: Муниципальное бюджетное дошкольное учреждение детский сад "Радуга" д.Кугланур Шарангского муниципального района | C17: 1 | D17: 85.11 | E17: 18 | F17: 2.55 | G17: 2348141.34 | H17: 1177132.53 | I17: 1171008.81
A18: 10 | B18: Муниципальное бюджетное дошкольное учреждение детский сад "Родничок" д.Щекотово Шарангского муниципального района | C18: 1 | D18: 85.11 | E18: 8.4 | F18: 1.19 | G18: 2371495.36 | H18: 1298499.6 | I18: 1072995.76
A19: 11 | B19: Муниципальное бюджетное дошкольное учреждение детский сад "Ручеек" р.п.Шаранга Шарангского муниципального района | C19: 1 | D19: 85.11 | E19: 127.7 | F19: 18.06 | G19: 9935254.89 | H19: 6939943.36 | I19: 2995311.53
A20: 12 | B20: Муниципальное бюджетное дошкольное учреждение детский сад "Рябинка" с.Б.Устинск Шарангского муниципального района | C20: 1 | D20: 85.11 | E20: 30.6 | F20: 4.33 | G20: 3256703.15 | H20: 2209046.67 | I20: 1047656.48
A21: 13 | B21: Муниципальное бюджетное дошкольное учреждение детский сад "Светлячок" р.п.Шаранга Шарангского муниципального района | C21: 1 | D21: 85.11 | E21: 196.9 | F21: 27.84 | G21: 18862261.06 | H21: 12568651.67 | I21: 6293609.39
A22: 14 | B22: Муниципальное бюджетное дошкольное учреждение детский сад "Теремок" р.п.Шаранга Шарангского муниципального района | C22: 1 | D22: 85.11 | E22: 80.8 | F22: 11.43 | G22: 8444556.22 | H22: 5290062.93 | I22: 3154493.29
A23: 15 | B23: Муниципальное бюджетное дошкольное учреждение детский сад "Теремок" д.Черномуж Шарангского муниципального района | C23: 1 | D23: 85.11 | E23: 21.6 | F23: 3.05 | G23: 2892729.97 | H23: 1839440.2 | I23: 1053289.77
A24: 16 | B24: Муниципальное бюджетное образовательное учреждение Поздеевская общеобразовательная школа (дошкольная группа) д.Поздеево Шарангского муниципального района | C24: 1 | D24: 85.11 | E24: 15 | F24: 2.12 | G24: 2571136.15 | H24: 2078586.73 | I24: 492549.42
A25: 2019
A26: 1 | B26: Муниципальное бюджетное дошкольное учреждение детский сад "Колосок" с.Роженцово Шарангского муниципального района | C26: 1 | D26: 85.11 | E26: 20 | F26: 2.89 | G26: =H26+I26 -> 3604381.03 | H26: 2388436.45 | I26: 1215944.58
A27: 2 | B27: Муниципальное бюджетное дошкольное учреждение детский сад "Полянка" р.п.Шаранга Шарангского муниципального района | C27: 1 | D27: 85.11 | E27: 52.1 | F27: 7.53 | G27: =H27+I27 -> 6187788 | H27: 3633137.74 | I27: 2554650.26
A28: 3 | B28: Муниципальное бюджетное дошкольное учреждение детский сад "Солнышко" с.Ст.Рудка Шарангского муниципального района | C28: 1 | D28: 85.11 | E28: 6 | F28: 0.87 | G28: 2662513.98 | H28: 1461887.22 | I28: 1200626.76
A29: 4 | B29: Муниципальное бюджетное дошкольное учреждение детский сад "Березка" р.п.Шаранга Шарангского муниципального района | C29: 1 | D29: 85.11 | E29: 51 | F29: 7.37 | G29: 5965316.12 | H29: 3854817.76 | I29: 2110498.36
A30: 5 | B30: Муниципальное бюджетное дошкольное учреждение детский сад "Колобок" с.Кушнур Шарангского муниципального района | C30: 1 | D30: 85.11 | E30: 27 | F30: 3.9 | G30: 4010021.13 | H30: 2214607.7 | I30: 1795413.43
A31: 6 | B31: Муниципальное бюджетное дошкольное учреждение детский сад "Колобок"с.Щенники Шарангского муниципального района | C31: 1 | D31: 85.11 | E31: 11 | F31: 1.59 | G31: 2440339.16 | H31: 1295176.08 | I31: 1145163.08
A32: 7 | B32: Муниципальное бюджетное дошкольное учреждение детский сад "Колосок" с.Б.Рудка Шарангского муниципального района | C32: 1 | D32: 85.11 | E32: 23 | F32: 3.32 | G32: 4126880.14 | H32: 2484241.8 | I32: 1642638.34
A33: 8 | B33: Муниципальное бюджетное дошкольное учреждение детский сад "Малыш" д.Пестово Шарангского муниципального района | C33: 1 | D33: 85.11 | E33: 13 | F33: 1.88 | G33: 2808429.87 | H33: 1650420.95 | I33: 1158008.92
A34: 9 | B34: Муниципальное бюджетное дошкольное учреждение детский сад "Радуга" д.Кугланур Шарангского муниципального района | C34: 1 | D34: 85.11 | E34: 14 | F34: 2.02 | G34: 3138757.48 | H34: 1605403.56 | I34: 1533353.92
A35: 10 | B35: Муниципальное бюджетное дошкольное учреждение детский сад "Родничок" д.Щекотово Шарангского муниципального района | C35: 1 | D35: 85.11 | E35: 8 | F35: 1.16 | G35: 2766254.44 | H35: 1547690.67 | I35: 1218563.77
A36: 11 | B36: Муниципальное бюджетное дошкольное учреждение детский сад "Ручеек" р.п.Шаранга Шарангского муниципального района | C36: 1 | D36: 85.11 | E36: 130 | F36: 18.78 | G36: 12315786.77 | H36: 8094619.62 | I36: 4221167.15
A37: 12 | B37: Муниципальное бюджетное дошкольное учреждение детский сад "Рябинка" с.Б.Устинск Шарангского муниципального района | C37: 1 | D37: 85.11 | E37: 29 | F37: 4.19 | G37: 3640702.68 | H37: 2536938.04 | I37: 1103764.64
A38: 13 | B38: Муниципальное бюджетное дошкольное учреждение детский сад "Светлячок" р.п.Шаранга Шарангского муниципального района | C38: 1 | D38: 85.11 | E38: 213 | F38: 30.78 | G38: 25148122.07 | H38: 15829119.52 | I38: 9319002.55
A39: 14 | B39: Муниципальное бюджетное дошкольное учреждение детский сад "Теремок" р.п.Шаранга Шарангского муниципального района | C39: 1 | D39: 85.11 | E39: 83 | F39: 11.99 | G39: 10163468.36 | H39: 6097652.22 | I39: 4065816.14
A40: 15 | B40: Муниципальное бюджетное образовательное учреждение Поздеевская общеобразовательная школа (дошкольная группа) д.Поздеево Шарангского муниципального района | C40: 1 | D40: 85.11 | E40: 12 | F40: 1.73 | G40: 2632695.12 | H40: 2134364.93 | I40: 498330.19
A41: Рынок услуг общего образования
A42: 2018
A43: 1 | B43: Муниципальное бюджетное образовательное учреждение Большерудкинская основная школа с.Б.Рудка Шарангского муниципального района | C43: 1 | D43: 85.13 | E43: 41 | F43: 3.26 | G43: =H43+I43 -> 7541044.06 | H43: 6142316.51 | I43: 1398727.55
A44: 2 | B44: Муниципальное бюджетное образовательное учреждение Большеустинская основная школа с.Б.Устинск Шарангского муниципального района | C44: 1 | D44: 85.13 | E44: 46 | F44: 3.65 | G44: =H44+I44 -> 7742808.8 | H44: 6267914.48 | I44: 1474894.32
A45: 3 | B45: Муниципальное бюджетное образовательное учреждение Кушнурская основная школа с.Кушнур Шарангского муниципального района | C45: 1 | D45: 85.13 | E45: 44 | F45: 3.5 | G45: 10495341.53 | H45: 8280282.45 | I45: 2215059.08
A46: 4 | B46: Муниципальное бюджетное образовательное учреждение Поздеевская основная школа д.Поздеево Шарангского муниципального района | C46: 1 | D46: 85.13 | E46: 23 | F46: 1.83 | G46: 3112431.61 | H46: 2516187.57 | I46: 596244.04
A47: 5 | B47: Муниципальное бюджетное образовательное учреждение Роженцовская средяя школа с.Роженцово Шарангского муниципального района | C47: 1 | D47: 85.13 | E47: 89 | F47: 7.07 | G47: 12324108.36 | H47: 10184578.58 | I47: 2139529.78
A48: 6 | B48: Муниципальное бюджетное образовательное учреждение Старорудкинская основная школа с.Ст.Рудка Шарангского муниципального района | C48: 1 | D48: 85.13 | E48: 29 | F48: 2.31 | G48: 5820514.23 | H48: 5249608.84 | I48: 570905.39
A49: 7 | B49: Муниципальное бюджетное образовательное учреждение Черномужская основная школа д.Черномуж Шарангского муниципального района | C49: 1 | D49: 85.13 | E49: 43 | F49: 3.42 | G49: 7032058.61 | H49: 5957060.45 | I49: 1074998.16
A50: 8 | B50: Муниципальное бюджетное образовательное учреждение Шарангская средняя школа р.п.Шаранга Шарангского муниципального района | C50: 1 | D50: 85.13 | E50: 918 | F50: 72.97 | G50: 43299428.89 | H50: 35790529.28 | I50: 7508899.61
A51: 9 | B51: Муниципальное бюджетное образовательное учреждение Щенниковская основная школа с.Щенники Шарангского муниципального района | C51: 1 | D51: 85.13 | E51: 25 | F51: 1.99 | G51: 6156171.69 | H51: 5532600.04 | I51: 623571.65
A52: 2019
A53: 1 | B53: Муниципальное бюджетное образовательное учреждение Большерудкинская основная школа с.Б.Рудка Шарангского муниципального района | C53: 1 | D53: 85.13 | E53: 41 | F53: 3.29 | G53: =H53+I53 -> 7711137.95 | H53: 5788349.07 | I53: 1922788.88
A54: 2 | B54: Муниципальное бюджетное образовательное учреждение Большеустинская основная школа с.Б.Устинск Шарангского муниципального района | C54: 1 | D54: 85.13 | E54: 43 | F54: 3.45 | G54: =H54+I54 -> 7888873.22 | H54: 5930108.75 | I54: 1958764.47
A55: 3 | B55: Муниципальное бюджетное образовательное учреждение Кушнурская основная школа с.Кушнур Шарангского муниципального района | C55: 1 | D55: 85.13 | E55: 41 | F55: 3.29 | G55: 10656366.78 | H55: 7250222.31 | I55: 3406144.47
A56: 4 | B56: Муниципальное бюджетное образовательное учреждение Поздеевская основная школа д.Поздеево Шарангского муниципального района | C56: 1 | D56: 85.13 | E56: 24 | F56: 1.92 | G56: 5266180.13 | H56: 4269370.24 | I56: 996809.89
A57: 5 | B57: Муниципальное бюджетное образовательное учреждение Роженцовская средяя школа с.Роженцово Шарангского муниципального района | C57: 1 | D57: 85.13 | E57: 83 | F57: 6.65 | G57: 14027368.58 | H57: 10889336.34 | I57: 3138032.24
A58: 6 | B58: Муниципальное бюджетное образовательное учреждение Старорудкинская основная школа с.Ст.Рудка Шарангского муниципального района | C58: 1 | D58: 85.13 | E58: 30 | F58: 2.41 | G58: 6957457.29 | H58: 5380773.36 | I58: 1576683.93
A59: 7 | B59: Муниципальное бюджетное образовательное учреждение Черномужская основная школа д.Черномуж Шарангского муниципального района | C59: 1 | D59: 85.13 | E59: 42 | F59: 3.37 | G59: 8123611.51 | H59: 6026410.83 | I59: 2097200.68
A60: 8 | B60: Муниципальное бюджетное образовательное учреждение Шарангская средняя школа р.п.Шаранга Шарангского муниципального района | C60: 1 | D60: 85.13 | E60: 921 | F60: 73.85 | G60: 45426829.09 | H60: 35310317.96 | I60: 10116511.13
A61: 9 | B61: Муниципальное бюджетное образовательное учреждение Щенниковская основная школа с.Щенники Шарангского муниципального района | C61: 1 | D61: 85.13 | E61: 22.2 | F61: 1.77 | G61: 6009367.86 | H61: 4943217.59 | I61: 1066150.27
A62: Рынок услуг дополнительного образования детей
A63: 2018
A64: 1 | B64: Муниципальное бюджетное учреждение дошкольного образования "Дом детского творчества" р.п.Шаранга Шарангского муниципального района | C64: 1 | D64: 85.41 | E64: 454 | F64: 40.8 | G64: =H64+I64 -> 5362885 | H64: 0 | I64: 5362885
A65: 2 | B65: Муниципальное бюджетное учреждение дошкольного образования детско-юношеская спортивная школа р.п.Шаранга Шарангского муниципального района | C65: 1 | D65: 85.41 | E65: 341 | F65: 30.6 | G65: =H65+I65 -> 4342755.74 | H65: 0 | I65: 4342755.74
A66: 3 | B66: Муниципальное бюджетное учреждение дошкольного образования "Шарангская детская школа искусств" р.п.Шаранга Шарангского муниципального района | C66: 100 | D66: 85.41 | E66: 318 | F66: 28.6 | G66: 8651967.67 | H66: 5715367.67 | I66: 2936600
A67: 2019
A68: 1 | B68: Муниципальное бюджетное учреждение дошкольного образования "Дом детского творчества" р.п.Шаранга Шарангского муниципального района | C68: 1 | D68: 85.41 | E68: 447 | F68: 37.8 | G68: =H68+I68 -> 5830173.58 | H68: 56297 | I68: 5773876.58
A69: 2 | B69: Муниципальное бюджетное учреждение дошкольного образования детско-юношеская спортивная школа р.п.Шаранга Шарангского муниципального района | C69: 1 | D69: 85.41 | E69: 422 | F69: 35.6 | G69: =H69+I69 -> 4672837.79 | H69: 28147 | I69: 4644690.79
A70: 3 | B70: Муниципальное бюджетное учреждение дошкольного образования "Шарангская детская школа искусств" р.п.Шаранга Шарангского муниципального района | C70: 100 | D70: 85.41 | E70: 315 | F70: 26.6 | G70: 8658200 | H70: 6750800 | I70: 2907400
A71: Другие рынки (культура)
A72: 2018
A73: 1 | B73: Муниципальное бюджетное учреждение культуры "Шарангский районный дом культуры" р.п.Шаранга Шарангского муниципального района | C73: 100 | D73: 90.01 | E73: 40589 | F73: 50 | G73: 13298100 | H73: 121600 | I73: 13176500
A74: 2 | B74: Муниципальное бюджетное учреждение культуры "Шарангская централизованная клубная система" р.п.Шаранга Шарангского муниципального района | C74: 100 | D74: 90.01 | E74: 45372 | F74: 50 | G74: 17318500 | H74: 7424186.12 | I74: 9389863.73
A75: 3 | B75: Муниципальное бюджетное учреждение культуры "Межпоселенческая централизованная библиотечная система" р.п.Шаранга Шарангского муниципального района | C75: 100 | D75: 91.01 | E75: 86509 | F75: 100 | G75: 14262560.7 | H75: 166097.71 | I75: 14047800
A76: 4 | B76: Муниципальное бюджетное учреждение культуры "Шарангский народный краеведческий музей" р.п.Шаранга Шарангского муниципального района | C76: 100 | D76: 91.02 | E76: 5089 | F76: 100 | G76: 1886600 | H76: 23000 | I76: 1863600
A77: 2019
A78: 1 | B78: Муниципальное бюджетное учреждение культуры "Шарангский районный дом культуры" р.п.Шаранга Шарангского муниципального района | C78: 100 | D78: 90.01 | E78: 40700 | F78: 50 | G78: 14219891.47 | H78: 742461.87 | I78: 13268891.47
A79: 2 | B79: Муниципальное бюджетное учреждение культуры "Шарангская централизованная клубная система" р.п.Шаранга Шарангского муниципального района | C79: 100 | D79: 90.01 | E79: 45111 | F79: 50 | G79: 18865414.94 | H79: 1116924.25 | I79: 17552578.67
A80: 3 | B80: Муниципальное бюджетное учреждение культуры "Межпоселенческая централизованная библиотечная система" р.п.Шаранга Шарангского муниципального района | C80: 100 | D80: 91.01 | E80: 87890 | F80: 100 | G80: 15121311.64 | H80: 10470600 | I80: 4650711.64
A81: 4 | B81: Муниципальное бюджетное учреждение культуры "Шарангский народный краеведческий музей" р.п.Шаранга Шарангского муниципального района | C81: 100 | D81: 91.02 | E81: 6141 | F81: 100 | G81: 1928600 | H81: 0 | I81: 1928600
